bitfinex/quotes_BTCUSD_20250119
["timestamp","ask_amount","ask_price","bid_price","bid_amount"]
[1737319837788,0.24523989,105940.0,105930.0,0.17851332]
[1737319838024,0.40212093,105940.0,105930.0,0.04751332]
[1737319838227,0.33975338,105940.0,105930.0,0.04751332]
[1737319841254,0.59175169,105940.0,105930.0,0.04751332]
[1737319841891,0.33975338,105940.0,105930.0,0.04751332]
[1737319842009,0.244406,105930.0,105910.0,0.06181719]
[1737319842213,0.24525289,105930.0,105910.0,0.09646424]
[1737319842467,0.43405689,105930.0,105910.0,0.09646424]
[1737319842820,0.43405689,105930.0,105910.0,0.17846424]
[1737319843051,0.2526392,105930.0,105920.0,0.20539889]
[1737319843227,0.25179231,105930.0,105920.0,0.20539889]
[1737319843427,0.25263932,105930.0,105920.0,0.28486546]
[1737319843653,0.25263932,105930.0,105920.0,0.37937895]
[1737319843863,0.50445062,105930.0,105920.0,0.37937895]
[1737319844232,0.50445062,105930.0,105920.0,0.42653764]
[1737319844428,0.50445062,105930.0,105920.0,0.56992653]
[1737319844633,0.21068644,105930.0,105920.0,0.70302374]
[1737319844834,0.21068644,105930.0,105920.0,0.85302374]
[1737319845048,0.21068644,105930.0,105920.0,1.00302374]
[1737319845470,0.21068644,105930.0,105920.0,1.02238398]
[1737319845687,0.08478554,105930.0,105920.0,1.02238398]
[1737319845889,0.08478554,105930.0,105920.0,1.08377287]
[1737319846532,0.00084701,105930.0,105920.0,1.08377287]
[1737319847593,0.08393853,105940.0,105930.0,0.494401]
[1737319847819,0.08393853,105940.0,105930.0,0.98496445]
[1737319848023,0.08478551,105940.0,105930.0,0.61218667]
[1737319848260,0.08478551,105940.0,105930.0,0.58496445]
[1737319848507,0.00084698,105940.0,105930.0,0.58496445]
[1737319849473,0.08478551,105940.0,105930.0,0.58496445]
[1737319849632,0.08478551,105940.0,105930.0,0.42906207]
[1737319850240,0.21068641,105940.0,105930.0,0.42906207]
[1737319850975,0.37855428,105940.0,105930.0,0.42906207]
[1737319851565,0.37855428,105940.0,105930.0,0.33454858]
[1737319851776,0.37855428,105940.0,105930.0,0.20294858]
[1737319852791,0.25263929,105940.0,105930.0,0.20294858]
[1737319852988,0.25263929,105940.0,105930.0,0.06138889]
[1737319853213,0.25263929,105940.0,105930.0,0.25823194]
[1737319853595,0.00084698,105940.0,105930.0,0.25823194]
[1737319853879,0.00084698,105940.0,105930.0,0.19684305]
[1737319854782,0.21077004,105940.0,105930.0,0.19684305]
[1737319855260,0.21077004,105940.0,105930.0,0.24990677]
[1737319855655,0.21077004,105940.0,105930.0,0.31129566]
[1737319856039,0.21077004,105940.0,105930.0,0.20885361]
[1737319856360,0.21077004,105940.0,105930.0,0.20294858]
[1737319857267,0.21077004,105940.0,105930.0,0.10854758]
[1737319857672,0.30516304,105940.0,105930.0,0.04715869]
[1737319857851,0.32816304,105940.0,105930.0,0.04715869]
[1737319858331,0.49610149,105940.0,105930.0,0.04715869]
[1737319858869,0.49610149,105940.0,105930.0,0.05801345]
[1737319859222,0.11823998,105940.0,105930.0,0.05801345]
[1737319859585,0.11913984,105940.0,105930.0,0.05801345]
[1737319860006,0.11913984,105940.0,105930.0,0.11940234]
[1737319860547,0.63935384,105940.0,105930.0,0.11940234]
[1737319860659,0.63935384,105940.0,105930.0,0.18079123]
[1737319860864,0.52196084,105940.0,105930.0,0.35129223]
[1737319861077,0.52196084,105940.0,105930.0,0.49220572]
[1737319861279,0.2118017,105940.0,105930.0,0.73668362]
[1737319861552,0.2118017,105940.0,105930.0,0.88668362]
[1737319861758,0.2118017,105940.0,105930.0,0.98668362]
[1737319862295,0.00174684,105940.0,105930.0,0.98668362]
[1737319862494,0.00174684,105940.0,105930.0,1.00549874]
[1737319865341,0.00174684,105940.0,105930.0,0.75549874]
[1737319865761,0.00174684,105940.0,105930.0,1.00549874]
[1737319865962,0.00174684,105940.0,105930.0,0.60549874]
[1737319866300,0.00174684,105940.0,105930.0,0.44963195]
[1737319866507,0.00174684,105940.0,105930.0,0.51102084]
[1737319866932,0.0858193,105940.0,105930.0,0.51102084]
[1737319867336,0.0858193,105940.0,105930.0,0.33641583]
[1737319867537,0.0858193,105940.0,105930.0,0.49220572]
[1737319868076,0.0858193,105940.0,105930.0,0.33641583]
[1737319868311,0.21192799,105940.0,105930.0,0.32556107]
[1737319868689,0.30632099,105940.0,105930.0,0.23695256]
[1737319868900,0.30632099,105940.0,105930.0,0.11445256]
[1737319869105,0.47446592,105940.0,105930.0,0.11445256]
[1737319869272,0.38007292,105940.0,105930.0,0.16515582]
[1737319870056,0.68452078,105940.0,105930.0,0.10071693]
[1737319870891,0.60044832,105940.0,105930.0,0.10071693]
[1737319872254,0.47433963,105940.0,105930.0,0.10071693]
[1737319872395,0.47433963,105940.0,105930.0,0.03932804]
[1737319873447,0.617429,105940.0,105930.0,0.03932804]
[1737319873666,0.617429,105940.0,105930.0,0.11991462]
[1737319874307,0.40737414,105940.0,105930.0,0.11991462]
[1737319874734,0.40737414,105940.0,105930.0,0.10071693]
[1737319875332,0.09613984,105940.0,105930.0,0.03932804]
[1737319876213,0.46544564,105940.0,105930.0,0.03932804]
[1737319876419,0.54404564,105940.0,105930.0,0.03932804]
[1737319876636,0.54404564,105940.0,105930.0,0.03342306]
[1737319876846,1.03855913,105940.0,105930.0,0.03342306]
[1737319877070,1.07010294,105940.0,105930.0,0.03342306]
[1737319877301,0.09441,105920.0,105910.0,0.0005225]
[1737319877516,0.21192349,105920.0,105910.0,0.0005225]
[1737319878152,0.11741,105920.0,105910.0,0.0005225]
[1737319878366,0.11741,105920.0,105910.0,0.06191139]
[1737319878565,0.09525698,105920.0,105910.0,0.06823978]
[1737319879231,0.34806124,105920.0,105910.0,0.06823978]
[1737319879686,0.34806124,105920.0,105910.0,0.09691978]
[1737319879909,0.34806124,105920.0,105910.0,0.09059139]
[1737319880362,0.30594615,105920.0,105910.0,0.0964981]
[1737319881182,0.42345964,105920.0,105910.0,0.03510921]
[1737319881391,0.32894615,105920.0,105910.0,0.03510921]
[1737319881800,0.32894615,105920.0,105910.0,0.0292025]
[1737319882044,0.37106124,105920.0,105910.0,0.0292025]
[1737319883057,0.68189376,105920.0,105910.0,0.0292025]
[1737319884025,0.37106124,105920.0,105910.0,0.0292025]
[1737319884770,0.37106124,105920.0,105910.0,0.09059139]
[1737319885132,0.34806124,105920.0,105910.0,0.09059139]
[1737319885945,0.34806124,105920.0,105910.0,0.40572388]
[1737319885946,0.06639632,105920.0,105910.0,0.40572388]
[1737319886151,0.06639632,105920.0,105910.0,0.75612548]
[1737319886152,0.06724327,105920.0,105910.0,0.75612548]
[1737319886621,0.5057223,105920.0,105910.0,0.75612548]
[1737319887846,0.5057223,105920.0,105910.0,0.65612548]
[1737319888046,0.00084695,105920.0,105910.0,0.56163118]
[1737319888263,0.21126821,105940.0,105920.0,0.15]
[1737319888483,0.21126821,105940.0,105930.0,0.29492267]
[1737319888689,0.21126821,105940.0,105930.0,0.31331668]
[1737319888895,0.21211501,105940.0,105930.0,0.40783017]
[1737319889104,0.21211501,105940.0,105930.0,0.82928387]
[1737319889105,0.00174666,105940.0,105930.0,0.82928387]
[1737319889725,0.00174666,105940.0,105930.0,0.97928387]
[1737319889952,0.00174666,105940.0,105930.0,0.98519117]
[1737319890797,0.21126799,105950.0,105940.0,0.59227078]
[1737319891005,0.21126799,105950.0,105940.0,0.65407538]
[1737319891211,0.0017464,105950.0,105940.0,0.80407538]
[1737319891415,0.0017464,105950.0,105940.0,0.86546427]
[1737319891623,0.21036835,105960.0,105950.0,0.619484]
[1737319891827,0.21036835,105960.0,105950.0,0.93121807]
[1737319891986,0.21121502,105960.0,105950.0,0.95989807]
[1737319892427,0.00084667,105960.0,105950.0,0.95989807]
[1737319893953,0.00084667,105960.0,105950.0,0.79850918]
[1737319894309,0.00084667,105960.0,105950.0,0.49850918]
[1737319894578,0.00084667,105960.0,105950.0,0.64850918]
[1737319894891,0.00084667,105960.0,105950.0,0.71941537]
[1737319895221,0.00084667,105960.0,105950.0,0.83831837]
[1737319895433,0.00084667,105960.0,105950.0,0.98831837]
[1737319900349,0.00084667,105960.0,105950.0,0.82692948]
[1737319900550,0.00084667,105960.0,105950.0,0.67692948]
[1737319901379,0.00084667,105960.0,105950.0,0.52692948]
[1737319902974,0.00084667,105960.0,105950.0,0.67692948]
[1737319904998,0.09020467,105980.0,105970.0,0.06138889]
[1737319905204,0.00014938,105980.0,105970.0,0.06138889]
[1737319905410,0.09535391,105980.0,105970.0,0.09006889]
[1737319908180,0.09535391,105980.0,105970.0,0.02868]
[1737319911495,0.09535391,105980.0,105970.0,0.03822534]
[1737319915815,0.11835391,105980.0,105970.0,0.02868]
[1737319916053,0.2903674,105980.0,105970.0,0.02868]
[1737319917057,0.00099591,105980.0,105970.0,0.27894838]
[1737319917325,0.00099591,105980.0,105970.0,0.35534838]
[1737319917559,0.00099591,105980.0,105970.0,0.50534838]
[1737319917783,0.50592321,105980.0,105970.0,0.50534838]
[1737319918015,0.50592321,105980.0,105970.0,0.4884732]
[1737319918271,0.00099591,105980.0,105970.0,0.4889014]
[1737319919530,0.00099591,105980.0,105970.0,0.07362191]
[1737319919786,0.00099591,105980.0,105970.0,0.21609142]
[1737319920028,0.00099591,105980.0,105970.0,0.21514791]
[1737319920304,0.09535291,105980.0,105970.0,0.06870361]
[1737319921151,0.09535291,105980.0,105970.0,0.1300925]
[1737319921359,0.09535291,105980.0,105970.0,0.06870361]
[1737319921794,0.09535291,105980.0,105970.0,0.1300925]
[1737319922228,0.09535291,105980.0,105970.0,0.06870361]
[1737319922898,0.00099591,105980.0,105970.0,0.2244585]
[1737319923335,0.00099591,105980.0,105970.0,0.39537199]
[1737319924222,0.00099591,105980.0,105970.0,0.54537199]
[1737319926265,0.00064334,105980.0,105970.0,0.54537199]
[1737319927973,0.00064334,105980.0,105970.0,0.73981399]
[1737319928285,0.00064334,105980.0,105970.0,0.78561399]
[1737319930646,0.00154277,105980.0,105970.0,0.78561399]
[1737319931368,0.00154277,105980.0,105970.0,0.68561399]
[1737319931581,0.00154277,105980.0,105970.0,0.59117199]
[1737319932206,0.21164435,105980.0,105970.0,0.78561219]
[1737319933889,0.21164435,105980.0,105970.0,0.93561219]
[1737319933890,0.08541253,105980.0,105970.0,0.93561219]
[1737319934111,0.08541253,105980.0,105970.0,0.99700108]
[1737319935499,0.08541253,105980.0,105970.0,0.93561219]
[1737319937307,0.5020454,105990.0,105980.0,0.620757]
[1737319937586,0.49061007,105990.0,105980.0,1.297347]
[1737319937793,0.48345645,105990.0,105980.0,1.297347]
[1737319938196,0.48345645,105990.0,105980.0,1.35873589]
[1737319938408,0.44116058,105990.0,105980.0,1.35873589]
[1737319938613,0.00084638,105990.0,105980.0,1.37054071]
[1737319939363,0.00084638,105990.0,105980.0,0.74701309]
[1737319939774,0.00084638,105990.0,105980.0,0.89701309]
[1737319942524,0.0017456,105990.0,105980.0,0.89701309]
[1737319943593,0.12532522,106010.0,106000.0,0.094339]
[1737319943885,0.12532522,106010.0,106000.0,0.29834463]
[1737319944089,0.12617156,106010.0,106000.0,0.29740138]
[1737319944900,0.12617156,106010.0,106000.0,0.3092062]
[1737319945273,0.00084634,106010.0,106000.0,0.3092062]
[1737319945864,0.09517634,106010.0,106000.0,0.05896482]
[1737319948065,0.00084634,106010.0,106000.0,0.15330382]
[1737319948274,0.00084634,106010.0,106000.0,0.21563599]
[1737319948457,0.25402398,106010.0,106000.0,0.21469271]
[1737319949019,0.25402398,106010.0,106000.0,0.23361152]
[1737319949265,0.46441036,106010.0,106000.0,0.23361152]
[1737319949632,0.46441036,106010.0,106000.0,0.47812501]
[1737319949845,0.46441036,106010.0,106000.0,0.75274041]
[1737319950056,0.08524441,106010.0,106000.0,0.79874041]
[1737319950653,0.08524441,106010.0,106000.0,1.0101293]
[1737319950837,0.08524441,106010.0,106000.0,0.95813564]
[1737319951269,0.00084634,106010.0,106000.0,0.95813564]
[1737319951702,0.00084634,106010.0,106000.0,1.01952453]
[1737319952313,0.08529771,106030.0,106020.0,0.174521]
[1737319952677,0.08529771,106030.0,106020.0,0.53431232]
[1737319952678,0.08579759,106030.0,106020.0,0.53431232]
[1737319952889,0.08664374,106030.0,106020.0,0.47198038]
[1737319953293,0.00224567,106030.0,106020.0,0.47198038]
[1737319953743,0.00224567,106030.0,106020.0,0.53336927]
[1737319954145,0.00224567,106030.0,106020.0,0.54517409]
[1737319955328,0.00224567,106030.0,106020.0,0.84057409]
[1737319955589,0.59103508,106050.0,106040.0,0.171204]
[1737319955793,0.59118495,106050.0,106040.0,0.53097513]
[1737319956007,0.59203103,106050.0,106040.0,0.68003227]
[1737319956847,0.00189538,106050.0,106040.0,0.69183709]
[1737319957403,0.00189538,106050.0,106040.0,0.79183709]
[1737319957801,0.00189538,106050.0,106040.0,0.6304482]
[1737319958221,0.00189538,106050.0,106040.0,0.5535482]
[1737319960231,0.00189538,106050.0,106040.0,0.24778231]
[1737319960439,0.09619038,106050.0,106040.0,0.05896482]
[1737319960858,0.09619038,106050.0,106040.0,0.12035371]
[1737319961393,0.09619038,106050.0,106040.0,0.05896482]
[1737319961595,0.11919038,106050.0,106040.0,0.05896482]
[1737319962622,0.60192796,106050.0,106040.0,0.10854889]
[1737319963099,0.50763296,106050.0,106040.0,0.15663587]
[1737319963502,0.50763296,106050.0,106040.0,0.25114936]
[1737319963643,0.21269264,106050.0,106040.0,0.25020638]
[1737319964087,0.21269264,106050.0,106040.0,0.2620112]
[1737319964488,0.09619038,106050.0,106040.0,0.2620112]
[1737319964695,0.00189538,106050.0,106040.0,0.2620112]
[1737319964894,0.09619038,106050.0,106040.0,0.30920996]
[1737319965830,0.00189538,106050.0,106040.0,0.30920996]
[1737319966453,0.00189538,106050.0,106040.0,0.21490596]
[1737319966454,0.09619038,106050.0,106040.0,0.21490596]
[1737319967060,0.09619038,106050.0,106040.0,0.30920996]
[1737319967285,0.00189538,106050.0,106040.0,0.30920996]
[1737319968265,0.09619038,106050.0,106040.0,0.30920996]
[1737319971654,0.09619038,106050.0,106040.0,0.21490596]
[1737319972095,0.18041601,106050.0,106040.0,0.05900358]
[1737319972296,0.25721601,106050.0,106040.0,0.05900358]
[1737319972815,0.25721601,106050.0,106040.0,0.12039247]
[1737319973243,0.38378764,106050.0,106040.0,0.12039247]
[1737319973444,0.38378764,106050.0,106040.0,0.05900358]
[1737319974470,0.76295359,106050.0,106040.0,0.05900358]
[1737319975557,0.55215633,106050.0,106040.0,0.05900358]
[1737319976123,0.55215633,106050.0,106040.0,0.04719876]
[1737319976523,0.69461512,106050.0,106040.0,0.04719876]
[1737319977760,0.38337676,106050.0,106040.0,0.04719876]
[1737319978277,0.094304,106040.0,106030.0,0.07100686]
[1737319978481,0.09515008,106040.0,106030.0,0.07100686]
[1737319978688,0.09515008,106040.0,106030.0,0.00961797]
[1737319979382,0.09515008,106040.0,106030.0,0.02141745]
[1737319979592,0.09515008,106040.0,106030.0,0.09199956]
[1737319980012,0.30604911,106040.0,106030.0,0.10405956]
[1737319980356,0.21174511,106040.0,106030.0,0.29382808]
[1737319980560,0.21174511,106040.0,106030.0,0.37208505]
[1737319982014,0.00084608,106040.0,106030.0,0.37208505]
[1737319982399,0.00084608,106040.0,106030.0,0.84561267]
[1737319982577,0.00084608,106040.0,106030.0,0.37208505]
[1737319983912,0.00084608,106040.0,106030.0,1.04000067]
[1737319984316,0.00084608,106040.0,106030.0,1.19000067]
[1737319984520,0.00084608,106040.0,106030.0,1.25138956]
[1737319984724,0.00084608,106040.0,106030.0,1.29878956]
[1737319985104,0.00084608,106040.0,106030.0,1.23740067]
[1737319986333,0.00084608,106040.0,106030.0,1.29878956]
[1737319986512,0.00084608,106040.0,106030.0,1.44878956]
[1737319989729,0.00084608,106040.0,106030.0,1.73171956]
[1737319990064,0.0010493,106050.0,106040.0,0.54778178]
[1737319990455,0.0010493,106050.0,106040.0,1.13326527]
[1737319990456,0.00104911,106050.0,106040.0,1.13326527]
[1737319991899,0.00104911,106050.0,106040.0,1.14506475]
[1737320001010,0.00104911,106050.0,106040.0,0.83367586]
[1737320001431,0.00104911,106050.0,106040.0,0.70697586]
[1737320003745,0.094295,106050.0,106040.0,0.83419297]
[1737320003933,0.09514089,106050.0,106040.0,0.49601497]
[1737320004143,0.17264089,106050.0,106040.0,0.49601497]
[1737320004372,0.17264089,106050.0,106040.0,0.55740386]
[1737320005780,0.55221057,106050.0,106040.0,0.55740386]
[1737320006622,0.55221057,106050.0,106040.0,0.49601497]
[1737320006774,0.55221057,106050.0,106040.0,0.40171097]
[1737320008335,0.7770306,106060.0,106040.0,0.49601497]
[1737320008527,0.09514077,106050.0,106040.0,0.49601497]
[1737320009836,0.09514077,106050.0,106040.0,0.40171097]
[1737320010248,0.09514077,106050.0,106040.0,0.30719748]
[1737320010471,0.16674077,106050.0,106040.0,0.30719748]
[1737320010676,0.58225426,106050.0,106040.0,0.30719748]
[1737320011263,0.66235426,106050.0,106040.0,0.30719748]
[1737320011467,0.87274064,106050.0,106040.0,0.30719748]
[1737320011922,0.87274064,106050.0,106040.0,0.295398]
[1737320013005,0.66235426,106050.0,106040.0,0.295398]
[1737320013626,0.54484077,106050.0,106040.0,0.295398]
[1737320014375,0.32184577,106050.0,106040.0,0.45109089]
[1737320014620,0.32184577,106050.0,106040.0,0.69560438]
[1737320015033,0.00084577,106050.0,106040.0,0.69560438]
[1737320015540,0.00174458,106050.0,106040.0,0.69560438]
[1737320015846,0.00174458,106050.0,106040.0,0.70740221]
[1737320016256,0.00174458,106050.0,106040.0,0.80178101]
[1737320017583,0.00174458,106050.0,106040.0,0.92768101]
[1737320019121,0.00174458,106050.0,106040.0,0.9890699]
[1737320019709,0.00174458,106050.0,106040.0,1.0890699]
[1737320020497,0.00174458,106050.0,106040.0,1.25769456]
[1737320021436,0.00089922,106060.0,106040.0,1.16339056]
[1737320021614,0.00089922,106060.0,106050.0,0.312529]
[1737320021811,0.00089922,106060.0,106050.0,0.79717389]
[1737320021969,0.00174499,106060.0,106050.0,0.79717389]
[1737320023716,0.09603099,106060.0,106050.0,0.20086849]
[1737320023936,0.00174499,106060.0,106050.0,0.27405521]
[1737320024672,0.00174499,106060.0,106050.0,0.80897172]
[1737320025261,0.00174499,106060.0,106050.0,0.90333952]
[1737320028322,0.00174499,106060.0,106050.0,0.90333952]
[1737320028521,0.00174499,106060.0,106050.0,1.36582952]
[1737320032865,0.00174499,106060.0,106050.0,1.51582952]
[1737320033195,0.00090048,106070.0,106060.0,0.09603099]
[1737320033366,0.00095039,106070.0,106060.0,0.62449602]
[1737320033666,0.00179597,106070.0,106060.0,0.62355337]
[1737320034293,0.00179597,106070.0,106060.0,0.72355337]
[1737320034450,0.00179597,106070.0,106060.0,0.93494226]
[1737320034654,0.48594873,106090.0,106080.0,0.420968]
[1737320034855,0.22288062,106090.0,106080.0,1.22455787]
[1737320035074,0.00865894,106090.0,106080.0,1.22455787]
[1737320035275,0.12753496,106100.0,106090.0,0.570959]
[1737320035481,0.12753496,106100.0,106090.0,0.72686138]
[1737320035678,0.12838031,106100.0,106090.0,1.495229]
[1737320035878,0.12838031,106100.0,106090.0,1.542329]
[1737320036099,0.12838031,106100.0,106090.0,1.61551572]
[1737320036313,0.02660802,106100.0,106090.0,1.61551572]
[1737320036511,0.25400744,106110.0,106100.0,0.57095]
[1737320036736,0.21733343,106110.0,106100.0,1.11596298]
[1737320036879,0.21817878,106110.0,106100.0,1.11596298]
[1737320037081,0.21817878,106110.0,106100.0,1.05457409]
[1737320037324,0.00084535,106110.0,106100.0,1.17735187]
[1737320037744,0.00084535,106110.0,106100.0,1.1891497]
[1737320039207,0.00084535,106110.0,106100.0,1.06637192]
[1737320039406,0.00084535,106110.0,106100.0,1.1891497]
[1737320040019,0.00084535,106110.0,106100.0,1.20080712]
[1737320040987,0.00089881,106110.0,106100.0,1.20080712]
[1737320041204,0.00174407,106110.0,106100.0,1.20080712]
[1737320043218,0.00174407,106110.0,106100.0,1.21986614]
[1737320045708,0.00089922,106120.0,106110.0,0.4]
[1737320045910,0.00089922,106120.0,106110.0,1.56004989]
[1737320046114,0.00174436,106120.0,106110.0,1.56004989]
[1737320046576,0.00174436,106120.0,106110.0,1.57184772]
[1737320049356,0.00089986,106140.0,106130.0,0.244224]
[1737320049696,0.00139928,106140.0,106130.0,1.2506146]
[1737320049891,0.00224433,106140.0,106130.0,1.2506146]
[1737320050787,0.00224433,106140.0,106130.0,1.2626746]
[1737320051170,0.00224433,106140.0,106130.0,1.27447243]
[1737320051700,0.09645933,106140.0,106130.0,1.21308354]
[1737320051849,0.14285933,106140.0,106130.0,1.11879294]
[1737320052037,0.14285933,106140.0,106130.0,0.96879294]
[1737320052956,0.14285933,106140.0,106130.0,1.03018183]
[1737320053361,0.140615,106140.0,106130.0,1.04216752]
[1737320053557,0.14145991,106140.0,106130.0,0.78005545]
[1737320053910,0.238615,106140.0,106130.0,0.78005545]
[1737320054251,0.215615,106140.0,106130.0,0.93566834]
[1737320054464,0.1214,106140.0,106130.0,0.92387051]
[1737320054646,0.09510981,106150.0,106130.0,1.112597]
[1737320054851,0.00104851,106150.0,106140.0,0.25011738]
[1737320055057,0.00104851,106150.0,106140.0,0.26217738]
[1737320055660,0.00104851,106150.0,106140.0,0.56785697]
[1737320055867,0.00104851,106150.0,106140.0,1.06289511]
[1737320056521,0.00104851,106150.0,106140.0,1.07469294]
[1737320057121,0.00104851,106150.0,106140.0,1.08655387]
[1737320057770,0.00104851,106150.0,106140.0,1.05666573]
[1737320058537,0.00104851,106150.0,106140.0,0.81277684]
[1737320058738,0.00104851,106150.0,106140.0,0.83207257]
[1737320058938,0.00104851,106150.0,106140.0,0.89346146]
[1737320059140,0.00104851,106150.0,106140.0,0.88166363]
[1737320059375,0.00104851,106150.0,106140.0,0.82027474]
[1737320059883,0.00104851,106150.0,106140.0,0.98166363]
[1737320060089,0.00104851,106150.0,106140.0,1.02966363]
[1737320062240,0.00104851,106150.0,106140.0,1.10866363]
[1737320063341,0.00082388,106160.0,106150.0,0.2566434]
[1737320063546,0.00082388,106160.0,106150.0,1.10730451]
[1737320063679,0.00082388,106160.0,106150.0,1.3307534]
[1737320063885,0.00082388,106160.0,106150.0,1.5597534]
[1737320065119,0.0159211,106190.0,106170.0,0.1]
[1737320065316,0.01607072,106190.0,106180.0,0.68941188]
[1737320065543,0.01607072,106190.0,106180.0,1.12101027]
[1737320065946,0.01607072,106190.0,106180.0,1.15089841]
[1737320066143,0.00089859,106200.0,106190.0,0.4]
[1737320066347,0.00089859,106200.0,106190.0,1.56172259]
[1737320066828,0.00095859,106220.0,106210.0,0.194153]
[1737320067046,0.00095859,106220.0,106210.0,1.20119677]
[1737320067190,0.00095859,106220.0,106210.0,1.2002555]
[1737320067398,0.00095859,106220.0,106210.0,1.42370439]
[1737320067596,0.00095859,106220.0,106210.0,1.3623155]
[1737320068395,0.00095859,106220.0,106210.0,1.2623155]
[1737320068583,0.09510259,106220.0,106210.0,1.01256111]
[1737320068922,0.09510259,106220.0,106210.0,0.29452]
[1737320071899,0.09510259,106220.0,106210.0,0.295328]
[1737320072245,0.24510259,106220.0,106210.0,0.295328]
[1737320073019,0.24510259,106220.0,106210.0,0.29452]
[1737320078600,0.15095859,106220.0,106180.0,0.53308989]
[1737320078723,0.282491,106200.0,106190.0,0.09451349]
[1737320080812,0.282491,106200.0,106190.0,0.23583329]
[1737320081133,0.282491,106200.0,106190.0,0.14166329]
[1737320081291,0.282491,106200.0,106190.0,0.29722218]
[1737320081469,0.282491,106200.0,106190.0,0.14166329]
[1737320084709,0.282491,106200.0,106190.0,0.23583329]
[1737320084930,0.282491,106200.0,106190.0,0.14166329]
[1737320085921,0.282491,106200.0,106190.0,0.23583329]
[1737320086148,0.282491,106200.0,106190.0,0.29722218]
[1737320086355,0.094167,106200.0,106190.0,0.29722218]
[1737320086518,0.094167,106200.0,106190.0,0.23583329]
[1737320086931,0.094161,106200.0,106190.0,0.48555818]
[1737320087277,0.094161,106200.0,106190.0,0.23583329]
[1737320088251,0.094161,106200.0,106190.0,0.23626069]
[1737320091171,0.094161,106200.0,106190.0,0.25122826]
[1737320091372,0.47079,106210.0,106190.0,0.61293469]
[1737320091575,0.47079,106210.0,106190.0,0.86265658]
[1737320091784,0.00095859,106220.0,106210.0,0.094153]
[1737320091980,0.00095859,106220.0,106210.0,0.29720518]
[1737320093402,0.09510259,106220.0,106210.0,0.14166329]
[1737320093616,0.09510259,106220.0,106210.0,0.14247584]
[1737320094022,0.09510259,106220.0,106210.0,0.23662884]
[1737320094459,0.09510259,106220.0,106210.0,0.14247584]
[1737320094865,0.09510259,106220.0,106210.0,0.14166329]
[1737320095147,0.09510259,106220.0,106210.0,0.0471498]
[1737320097482,0.11810259,106220.0,106210.0,0.0471498]
[1737320099019,0.41810259,106220.0,106210.0,0.0471498]
[1737320100597,0.50201947,106220.0,106210.0,0.0471498]
[1737320101984,0.6278948,106220.0,106210.0,0.0471498]
[1737320102166,0.4778948,106220.0,106210.0,0.0471498]
[1737320102325,0.6278948,106220.0,106210.0,0.0471498]
[1737320103056,0.7957371,106220.0,106210.0,0.0471498]
[1737320105057,0.6457371,106220.0,106210.0,0.0471498]
[1737320105261,0.7957371,106220.0,106210.0,0.0471498]
[1737320105461,0.6227371,106220.0,106210.0,0.0471498]
[1737320105696,0.83287103,106220.0,106210.0,0.0471498]
[1737320106096,0.98287103,106220.0,106210.0,0.0471498]
[1737320106806,0.6048948,106220.0,106210.0,0.0471498]
[1737320107581,0.6048948,106220.0,106210.0,0.05009491]
[1737320108771,0.6048948,106220.0,106210.0,0.0471498]
[1737320109345,0.98287103,106220.0,106210.0,0.0471498]
[1737320110542,0.92195415,106220.0,106210.0,0.0471498]
[1737320111872,0.79607882,106220.0,106210.0,0.05009507]
[1737320112503,1.83279231,106220.0,106210.0,0.05009507]
[1737320112724,1.87999231,106220.0,106210.0,0.05009507]
[1737320112877,0.96949231,106220.0,106210.0,0.0471498]
[1737320114398,0.87626235,106220.0,106210.0,0.0471498]
[1737320114596,1.31343181,106220.0,106210.0,0.0471498]
[1737320115757,1.4079453,106220.0,106210.0,0.0471498]
[1737320115965,0.97077584,106220.0,106210.0,0.0471498]
[1737320116383,0.87626235,106220.0,106210.0,0.0471498]
[1737320116577,0.394161,106200.0,106190.0,0.0004274]
[1737320117397,0.394161,106200.0,106190.0,0.00337311]
[1737320118092,0.417161,106200.0,106190.0,0.00337311]
[1737320118682,0.92501256,106200.0,106190.0,0.00337311]
[1737320118879,0.77501256,106200.0,106190.0,0.04327311]
[1737320119109,0.92501256,106200.0,106190.0,0.04327311]
[1737320119337,0.79804967,106200.0,106190.0,0.04327311]
[1737320121502,0.81201781,106200.0,106190.0,0.04327311]
[1737320123239,0.81286244,106200.0,106190.0,0.04327311]
[1737320123495,0.4758943,106200.0,106190.0,0.04327311]
[1737320123737,0.4758943,106200.0,106190.0,0.1831866]
[1737320123992,0.3817333,106200.0,106190.0,0.41964549]
[1737320124208,0.50864009,106200.0,106190.0,0.89317311]
[1737320124928,0.50864009,106200.0,106190.0,1.13741941]
[1737320126009,0.00084463,106200.0,106190.0,1.13741941]
[1737320126279,0.00084463,106200.0,106190.0,1.13823196]
[1737320127856,0.00084463,106200.0,106190.0,1.13741941]
[1737320128670,0.00084463,106200.0,106190.0,1.15091667]
[1737320129933,0.00084463,106200.0,106190.0,1.17020599]
[1737320130091,0.00084463,106200.0,106190.0,1.27020599]
[1737320130529,0.00084463,106200.0,106190.0,1.17020599]
[1737320131349,0.00084463,106200.0,106190.0,1.27020599]
[1737320132007,0.00084463,106200.0,106190.0,1.33159488]
[1737320132260,0.00084463,106200.0,106190.0,1.27020599]
[1737320134066,0.00084463,106200.0,106190.0,1.17020599]
[1737320134525,0.00174406,106200.0,106190.0,1.17020599]
[1737320135691,0.00089943,106200.0,106190.0,1.17020599]
[1737320135901,0.00183299,106200.0,106190.0,1.17020599]
[1737320136532,0.00183299,106200.0,106190.0,1.33159488]
[1737320136739,0.00183299,106200.0,106190.0,1.27020599]
[1737320139358,0.00183299,106200.0,106190.0,1.29320599]
[1737320139562,0.00183299,106200.0,106190.0,1.35459488]
[1737320139757,0.00183299,106200.0,106190.0,1.50459488]
[1737320140460,0.00183299,106200.0,106190.0,1.78709488]
[1737320140614,0.00183299,106200.0,106190.0,1.78414917]
[1737320141020,0.00183299,106200.0,106190.0,2.65992333]
[1737320143214,0.00183299,106200.0,106190.0,1.86871149]
[1737320144368,0.00183299,106200.0,106190.0,1.8073226]
[1737320144620,0.00183299,106200.0,106190.0,1.7843226]
[1737320144911,0.00183299,106200.0,106190.0,1.84571149]
[1737320145043,0.00183299,106200.0,106190.0,1.7843226]
[1737320145441,0.37261417,106240.0,106210.0,0.188306]
[1737320145652,0.09428759,106230.0,106220.0,0.18865549]
[1737320145899,0.28255859,106230.0,106220.0,0.18865549]
[1737320146051,0.28349209,106230.0,106220.0,0.18865549]
[1737320146257,0.28349209,106230.0,106220.0,0.22855549]
[1737320146680,0.00108309,106230.0,106220.0,0.36644438]
[1737320147628,0.00108309,106230.0,106220.0,0.30505549]
[1737320148215,0.09521809,106230.0,106220.0,0.13441349]
[1737320148799,0.09476572,106230.0,106220.0,0.22855749]
[1737320149010,0.08579841,106230.0,106220.0,0.22855749]
[1737320149216,0.5447909,106240.0,106220.0,0.41684249]
[1737320149393,0.094126,106240.0,106230.0,0.282402]
[1737320149624,0.094126,106240.0,106230.0,0.41681549]
[1737320149835,0.09505917,106240.0,106230.0,0.41681549]
[1737320150006,0.00093317,106240.0,106230.0,0.65021548]
[1737320151249,0.00084611,106240.0,106230.0,0.55600438]